[Event "13th Arad Open 2020"]
[Site "Arad"]
[Date "2020.09.28"]
[Round "4.4"]
[White "Filip, Lucian-Ioan"]
[Black "Talu, Mircea"]
[Result "1/2-1/2"]
[ECO "E16"]
[WhiteElo "2432"]
[BlackElo "2351"]
[Annotator "ChessBase"]
[PlyCount "55"]
[EventDate "2020.09.25"]
[EventType "swiss"]
[EventCountry "ROU"]
[SourceTitle "playchess.com"]
[Source "ChessBase"]
[SourceQuality "1"]
[TimeControl "5400+30"]

1. d4 {[%emt 0:00:00]} Nf6 {[%emt 0:00:51]} 2. c4 {[%emt 0:00:00]} e6 {[%emt 0:00:09]} 3. Nf3 {[%emt 0:00:00]} b6 {[%emt 0:00:54]} 4. g3 {[%emt 0:00:00]} Bb7 {[%emt 0:00:52]} 5. Bg2 {[%emt 0:00:00]} Bb4+ {[%emt 0:00:10]} 6. Bd2 {[%emt 0:00:00]} a5 {[%emt 0:00:23]} 7. O-O {[%emt 0:00:07]} O-O {[%emt 0:00:12]} 8. Bf4 {[%emt 0:02:03]} Be7 {[%emt 0:00:11]} 9. Qc2 {[%emt 0:08:48]} Be4 {[%emt 0:17:37]} 10. Qc1 {[%emt 0:01:16]} Bb7 {[%emt 0:00:06]} 11. Rd1 {[%emt 0:13:00]} d6 {[%emt 0:02:03]} 12. Nc3 {[%emt 0:05:44]} Ne4 {[%emt 0:00:18]} 13. Nxe4 {[%emt 0:00:30]} Bxe4 {[%emt 0:00:07]} 14. Qe3 {[%emt 0:15:57]} Bb7 {[%emt 0:00:25]} 15. Qd3 {[%emt 0:00:09]} f5 {[%emt 0:05:31]} 16. Qe3 {[%emt 0:12:41]} Qd7 17. Bg5 Bxg5 {[%emt 0:05:05]} 18. Nxg5 {[%emt 0:00:33]} Bxg2 {[%emt 0:00:09]} 19. Kxg2 {[%emt 0:13:45]} Rf6 {[%emt 0:29:04]} 20. f4 {[%emt 0:03:50]} Qe8 {[%emt 0:02:18]} 21. Qf3 {[%emt 0:01:19]} Nd7 {[%emt 0:02:14]} 22. Qc6 {[%emt 0:00:11]} Rc8 {[%emt 0:03:29]} 23. e4 {[%emt 0:00:13]} fxe4 {[%emt 0:09:06]} 24. Nxe4 {[%emt 0:04:35]} Rf5 {[%emt 0:01:50]} 25. Re1 {[%emt 0:02:14]} h6 {[%emt 0:13:03]} 26. Rad1 {[%emt 0:00:13]} Nf6 {[%emt 0:00:08]} 27. Qxe8+ {[%emt 0:14:41]} Rxe8 28. Nxf6+ 1/2-1/2

[Event "13th Arad Open 2020"]
[Site "Arad"]
[Date "2020.09.28"]
[Round "4.5"]
[White "Ghimpu, Samuel-Timotei"]
[Black "Balla, Tamas-Kristof"]
[Result "1/2-1/2"]
[ECO "D00"]
[WhiteElo "2302"]
[BlackElo "2356"]
[Annotator "ChessBase"]
[PlyCount "62"]
[EventDate "2020.09.25"]
[EventType "swiss"]
[EventCountry "ROU"]
[SourceTitle "playchess.com"]
[Source "ChessBase"]
[SourceQuality "1"]
[TimeControl "5400+30"]

1. d4 {[%emt 0:00:00]} d5 {[%emt 0:00:00]} 2. Nc3 {[%emt 0:00:31]} Nf6 {[%emt 0:00:37]} 3. Bf4 {[%emt 0:00:06]} e6 {[%emt 0:00:32]} 4. e3 {[%emt 0:00:10]} Bd6 {[%emt 0:03:40]} 5. Nf3 {[%emt 0:00:12]} Bxf4 {[%emt 0:06:49]} 6. exf4 {[%emt 0:02:51]} b6 {[%emt 0:00:10]} 7. Ne5 {[%emt 0:02:27]} O-O {[%emt 0:00:35]} 8. Qf3 {[%emt 0:01:13]} c5 {[%emt 0:01:39]} 9. g4 {[%emt 0:03:18]} cxd4 {[%emt 0:08:37]} 10. Nb5 {[%emt 0:00:17]} Ba6 {[%emt 0:00:20]} 11. Nxd4 {[%emt 0:00:24]} Bxf1 {[%emt 0:01:29]} 12. Rxf1 {[%emt 0:00:01]} Nbd7 {[%emt 0:01:02]} 13. O-O-O {[%emt 0:00:45]} Nxe5 {[%emt 0:03:34]} 14. fxe5 {[%emt 0:00:01]} Ne4 {[%emt 0:00:17]} 15. Qe3 {[%emt 0:03:57]} Qg5 {[%emt 0:12:04]} 16. Qxg5 {[%emt 0:16:45]} Nxg5 {[%emt 0:01:11]} 17. f3 {[%emt 0:00:03]} h6 {[%emt 0:00:07]} 18. h4 {[%emt 0:00:34]} Nh7 {[%emt 0:00:05]} 19. Rd3 {[%emt 0:01:04]} Rfe8 {[%emt 0:02:22]} 20. Ra3 {[%emt 0:05:01]} Nf8 {[%emt 0:01:38]} 21. Re1 {[%emt 0:01:29]} Rec8 {[%emt 0:05:39]} 22. h5 {[%emt 0:16:56]} Nd7 {[%emt 0:03:11]} 23. Kd2 {[%emt 0:12:44]} Rc4 {[%emt 0:05:13]} 24. c3 {[%emt 0:00:09]} Kf8 {[%emt 0:01:07]} 25. f4 {[%emt 0:03:43]} Ke7 {[%emt 0:03:19]} 26. b3 {[%emt 0:02:57]} Rcc8 {[%emt 0:00:33]} 27. b4 {[%emt 0:00:14]} a6 {[%emt 0:05:50]} 28. Kd3 {[%emt 0:03:18]} Rc4 {[%emt 0:04:32]} 29. Rf1 {[%emt 0:02:36]} Rac8 {[%emt 0:01:53]} 30. Rc1 {[%emt 0:00:03]} Nb8 31. Rf1 a5 1/2-1/2

[Event "13th Arad Open 2020"]
[Site "Arad"]
[Date "2020.09.28"]
[Round "4.6"]
[White "Ursan, Petru-Sebastian"]
[Black "Filip, Andrei"]
[Result "1/2-1/2"]
[ECO "A30"]
[WhiteElo "2248"]
[BlackElo "2003"]
[Annotator "ChessBase"]
[PlyCount "148"]
[EventDate "2020.09.25"]
[EventType "swiss"]
[EventCountry "ROU"]
[SourceTitle "playchess.com"]
[Source "ChessBase"]
[SourceQuality "1"]
[TimeControl "5400+30"]

1. Nf3 {[%emt 0:00:00]} Nf6 {[%emt 0:00:00]} 2. c4 {[%emt 0:00:12]} c5 {[%emt 0:00:00]} 3. g3 {[%emt 0:00:33]} b6 {[%emt 0:01:30]} 4. Bg2 {[%emt 0:00:49]} Bb7 {[%emt 0:00:13]} 5. Nc3 {[%emt 0:03:24]} e6 {[%emt 0:02:52]} 6. O-O {[%emt 0:00:37]} Be7 {[%emt 0:00:20]} 7. Re1 {[%emt 0:03:03]} d5 {[%emt 0:01:07]} 8. cxd5 {[%emt 0:01:22]} exd5 {[%emt 0:00:41]} 9. d4 {[%emt 0:00:08]} O-O {[%emt 0:01:31]} 10. Bf4 {[%emt 0:02:34]} Nbd7 {[%emt 0:03:49]} 11. Rc1 {[%emt 0:11:42]} Ne4 {[%emt 0:11:28]} 12. dxc5 {[%emt 0:02:38]} Bxc5 {[%emt 0:04:58]} 13. Nxe4 {[%emt 0:09:00]} dxe4 {[%emt 0:01:00]} 14. Ng5 {[%emt 0:02:00]} Nf6 {[%emt 0:11:51]} 15. Qa4 {[%emt 0:10:49]} e3 {[%emt 0:12:48]} 16. fxe3 {[%emt 0:07:46]} Qe7 {[%emt 0:11:48]} 17. Bxb7 {[%emt 0:06:37]} Qxb7 {[%emt 0:00:11]} 18. b4 {[%emt 0:01:23]} b5 {[%emt 0:00:37]} 19. Qb3 {[%emt 0:02:25]} Bb6 {[%emt 0:00:28]} 20. Red1 {[%emt 0:06:48]} Rfe8 {[%emt 0:07:53]} 21. Nf3 {[%emt 0:07:24]} Ng4 {[%emt 0:04:55]} 22. Rc3 {[%emt 0:03:30]} Qe7 {[%emt 0:06:46]} 23. Rdd3 {[%emt 0:00:47]} Rac8 {[%emt 0:03:01]} 24. Rxc8 {[%emt 0:05:20]} Rxc8 {[%emt 0:00:01]} 25. h3 {[%emt 0:00:13]} Nf6 {[%emt 0:00:51]} 26. Kg2 {[%emt 0:01:40]} h6 {[%emt 0:02:06]} 27. Be5 {[%emt 0:01:23]} Rc4 {[%emt 0:01:45]} 28. Bxf6 {[%emt 0:00:43]} Qxf6 {[%emt 0:00:19]} 29. a3 {[%emt 0:01:49]} Qc6 {[%emt 0:02:54]} 30. Qd1 {[%emt 0:00:48]} Rc1 {[%emt 0:01:08]} 31. Qb3 {[%emt 0:02:01]} Qc4 {[%emt 0:01:59]} 32. Nd4 {[%emt 0:02:06]} h5 {[%emt 0:03:52]} 33. Rd2 {[%emt 0:02:23]} Qxb3 {[%emt 0:00:55]} 34. Nxb3 {[%emt 0:00:05]} Rc3 {[%emt 0:00:14]} 35. Rd3 {[%emt 0:00:25]} Rc2 {[%emt 0:00:50]} 36. Kf3 {[%emt 0:00:27]} Ra2 {[%emt 0:00:29]} 37. Nd4 {[%emt 0:00:47]} a6 {[%emt 0:00:13]} 38. Nf5 {[%emt 0:01:07]} Bc7 {[%emt 0:00:24]} 39. g4 {[%emt 0:01:46]} hxg4+ {[%emt 0:00:17]} 40. hxg4 {[%emt 0:00:04]} g6 {[%emt 0:00:42]} 41. Ne7+ {[%emt 0:00:42]} Kf8 {[%emt 0:00:15]} 42. Nd5 {[%emt 0:00:50]} Be5 {[%emt 0:00:24]} 43. Ke4 {[%emt 0:00:12]} f6 {[%emt 0:01:00]} 44. g5 {[%emt 0:00:11]} Kf7 {[%emt 0:00:41]} 45. Nxf6 {[%emt 0:00:18]} Bxf6 {[%emt 0:00:34]} 46. gxf6 {[%emt 0:00:06]} Ke6 {[%emt 0:00:11]} 47. Rc3 {[%emt 0:00:22]} Kxf6 {[%emt 0:00:45]} 48. Rc6+ {[%emt 0:00:06]} Kf7 {[%emt 0:00:32]} 49. Rxa6 {[%emt 0:00:14]} Rxe2 {[%emt 0:00:25]} 50. Rb6 {[%emt 0:01:49]} Ra2 {[%emt 0:00:07]} 51. Rb7+ {[%emt 0:00:33]} Kf6 {[%emt 0:00:48]} 52. Rb6+ {[%emt 0:00:06]} Kf7 {[%emt 0:00:12]} 53. Ke5 {[%emt 0:01:33]} Rxa3 {[%emt 0:00:28]} 54. Rb7+ {[%emt 0:00:25]} Kf8 {[%emt 0:01:14]} 55. e4 {[%emt 0:00:09]} Rf3 {[%emt 0:00:34]} 56. Rxb5 {[%emt 0:00:24]} g5 {[%emt 0:00:06]} 57. Rb8+ {[%emt 0:00:51]} Kf7 {[%emt 0:00:14]} 58. Rh8 {[%emt 0:00:51]} Rb3 {[%emt 0:00:59]} 59. Rh7+ {[%emt 0:00:28]} Kg8 {[%emt 0:00:26]} 60. Rh5 {[%emt 0:00:37]} Rxb4 {[%emt 0:00:12]} 61. Kf5 {[%emt 0:00:30]} Kf7 {[%emt 0:00:55]} 62. Rh7+ {[%emt 0:00:23]} Ke8 {[%emt 0:00:11]} 63. Rg7 {[%emt 0:00:18]} Rb6 {[%emt 0:00:21]} 64. e5 {[%emt 0:00:29]} Kf8 {[%emt 0:00:15]} 65. Ra7 {[%emt 0:00:15]} g4 {[%emt 0:00:20]} 66. Kxg4 {[%emt 0:00:11]} Ke8 {[%emt 0:00:07]} 67. Kf5 {[%emt 0:00:04]} Kf8 {[%emt 0:00:05]} 68. Ra8+ {[%emt 0:00:38]} Ke7 {[%emt 0:00:09]} 69. Rh8 {[%emt 0:00:11]} Ra6 {[%emt 0:00:23]} 70. Rg8 {[%emt 0:00:19]} Kf7 {[%emt 0:00:39]} 71. Rb8 {[%emt 0:00:20]} Ke7 {[%emt 0:00:14]} 72. Rb7+ {[%emt 0:00:07]} Ke8 {[%emt 0:00:09]} 73. e6 {[%emt 0:00:11]} Ra1 {[%emt 0:00:13]} 74. Kf6 {[%emt 0:00:05]} Rf1+ {[%emt 0:00:05]} 1/2-1/2

[Event "13th Arad Open 2020"]
[Site "Arad"]
[Date "2020.09.28"]
[Round "4.7"]
[White "Oltean, Cristian-Daniel"]
[Black "Daianu, Cristian-Clement"]
[Result "0-1"]
[ECO "B23"]
[WhiteElo "2001"]
[BlackElo "2224"]
[Annotator "ChessBase"]
[PlyCount "56"]
[EventDate "2020.09.25"]
[EventType "swiss"]
[EventCountry "ROU"]
[SourceTitle "playchess.com"]
[Source "ChessBase"]
[SourceQuality "1"]
[TimeControl "5400+30"]

1. e4 {[%emt 0:00:00]} c5 {[%emt 0:00:00]} 2. Nc3 {[%emt 0:00:00]} Nc6 {[%emt 0:00:44]} 3. f4 {[%emt 0:00:00]} g6 {[%emt 0:01:17]} 4. Nf3 {[%emt 0:00:09]} Bg7 {[%emt 0:00:10]} 5. Bb5 {[%emt 0:00:16]} Nd4 {[%emt 0:01:28]} 6. O-O {[%emt 0:00:38]} a6 {[%emt 0:00:32]} 7. Bd3 {[%emt 0:01:04]} d6 {[%emt 0:12:03]} 8. Nxd4 {[%emt 0:25:49]} cxd4 {[%emt 0:04:08]} 9. Ne2 {[%emt 0:01:11]} Nf6 {[%emt 0:00:25]} 10. Kh1 {[%emt 0:07:02]} e5 {[%emt 0:08:32]} 11. c3 {[%emt 0:10:06]} O-O {[%emt 0:09:08]} 12. cxd4 {[%emt 0:06:47]} exd4 {[%emt 0:03:21]} 13. Bc2 {[%emt 0:11:35]} d3 {[%emt 0:03:54]} 14. Bxd3 {[%emt 0:03:52]} Re8 {[%emt 0:02:02]} 15. Ng3 {[%emt 0:04:06]} Ng4 {[%emt 0:03:37]} 16. Be2 {[%emt 0:04:30]} Nxh2 {[%emt 0:07:31]} 17. Kxh2 {[%emt 0:15:59]} Qh4+ {[%emt 0:01:01]} 18. Kg1 {[%emt 0:00:28]} Bd4+ {[%emt 0:00:03]} 19. Rf2 {[%emt 0:00:32]} Qxg3 {[%emt 0:00:08]} 20. Qf1 {[%emt 0:02:18]} Rxe4 {[%emt 0:02:17]} 21. d3 {[%emt 0:01:32]} Re7 {[%emt 0:08:05]} 22. Rb1 {[%emt 0:01:37]} Bf5 {[%emt 0:00:24]} 23. Bd2 {[%emt 0:00:36]} Rxe2 {[%emt 0:01:56]} 24. Qxe2 {[%emt 0:00:38]} Bxd3 {[%emt 0:00:04]} 25. Qf3 {[%emt 0:00:59]} Qxf3 {[%emt 0:00:27]} 26. gxf3 {[%emt 0:00:05]} Bxb1 {[%emt 0:00:03]} 27. Bc3 {[%emt 0:00:05]} Bxf2+ {[%emt 0:00:06]} 28. Kxf2 {[%emt 0:00:04]} Bxa2 {[%emt 0:00:05]} 0-1

[Event "13th Arad Open 2020"]
[Site "Arad"]
[Date "2020.09.28"]
[Round "4.8"]
[White "Pisu, Robert-Daniel"]
[Black "Ambru, Dan-Calin"]
[Result "1-0"]
[ECO "A49"]
[WhiteElo "2223"]
[BlackElo "1985"]
[Annotator "ChessBase"]
[PlyCount "53"]
[EventDate "2020.09.25"]
[EventType "swiss"]
[EventCountry "ROU"]
[SourceTitle "playchess.com"]
[Source "ChessBase"]
[SourceQuality "1"]
[TimeControl "5400+30"]

1. d4 {[%emt 0:00:00]} Nf6 {[%emt 0:01:08]} 2. Nf3 {[%emt 0:00:00]} g6 {[%emt 0:00:07]} 3. g3 {[%emt 0:00:35]} Bg7 {[%emt 0:04:01]} 4. Bg2 {[%emt 0:00:28]} d6 {[%emt 0:00:06]} 5. O-O {[%emt 0:00:45]} O-O {[%emt 0:00:13]} 6. Re1 {[%emt 0:00:28]} d5 {[%emt 0:03:36]} 7. c4 {[%emt 0:02:15]} c6 {[%emt 0:01:46]} 8. Ne5 {[%emt 0:06:36]} Nbd7 {[%emt 0:10:34]} 9. Nc3 {[%emt 0:28:26]} e6 {[%emt 0:05:21]} 10. Nxd7 {[%emt 0:02:46]} Qxd7 {[%emt 0:01:44]} 11. c5 {[%emt 0:23:41]} b6 {[%emt 0:14:57]} 12. b4 {[%emt 0:02:37]} Bb7 {[%emt 0:15:55]} 13. Bf4 {[%emt 0:02:15]} Qc8 {[%emt 0:07:25]} 14. Be5 {[%emt 0:01:42]} Nd7 {[%emt 0:00:59]} 15. Bxg7 {[%emt 0:00:07]} Kxg7 {[%emt 0:00:05]} 16. e4 {[%emt 0:02:12]} a5 {[%emt 0:02:41]} 17. b5 {[%emt 0:09:22]} bxc5 {[%emt 0:07:25]} 18. bxc6 {[%emt 0:00:07]} Bxc6 {[%emt 0:00:09]} 19. exd5 {[%emt 0:00:11]} Bxd5 {[%emt 0:02:08]} 20. Nxd5 {[%emt 0:02:19]} exd5 {[%emt 0:00:55]} 21. Bxd5 {[%emt 0:00:06]} Ra7 {[%emt 0:03:15]} 22. Re7 {[%emt 0:02:13]} Qd8 {[%emt 0:02:07]} 23. Qe2 {[%emt 0:00:44]} cxd4 {[%emt 0:03:01]} 24. Qe6 {[%emt 0:01:12]} Rc7 {[%emt 0:06:26]} 25. Qd6 {[%emt 0:07:12]} Ra7 {[%emt 0:05:18]} 26. Bxf7 {[%emt 0:02:16]} Rxf7 {[%emt 0:00:59]} 27. Qxd4+ {[%emt 0:00:05]} 1-0

[Event "13th Arad Open 2020"]
[Site "Arad"]
[Date "2020.09.28"]
[Round "4.9"]
[White "Breitkopf, Francisc"]
[Black "Lehaci, Miruna-Daria"]
[Result "1/2-1/2"]
[ECO "C00"]
[WhiteElo "1984"]
[BlackElo "2223"]
[Annotator "ChessBase"]
[PlyCount "117"]
[EventDate "2020.09.25"]
[EventType "swiss"]
[EventCountry "ROU"]
[SourceTitle "playchess.com"]
[Source "ChessBase"]
[SourceQuality "1"]
[TimeControl "5400+30"]

1. e4 {[%emt 0:00:00]} e6 {[%emt 0:00:00]} 2. d4 {[%emt 0:00:58]} d5 {[%emt 0:00:00]} 3. Bd3 {[%emt 0:03:04]} dxe4 {[%emt 0:00:41]} 4. Bxe4 {[%emt 0:00:26]} Nf6 {[%emt 0:00:06]} 5. Bd3 {[%emt 0:00:45]} c5 {[%emt 0:01:53]} 6. Nf3 {[%emt 0:04:21]} cxd4 {[%emt 0:02:00]} 7. Nxd4 {[%emt 0:02:54]} Be7 {[%emt 0:03:23]} 8. O-O {[%emt 0:03:35]} O-O {[%emt 0:00:44]} 9. a4 {[%emt 0:08:21]} Nbd7 {[%emt 0:02:31]} 10. c3 {[%emt 0:06:07]} Re8 {[%emt 0:07:56]} 11. Re1 {[%emt 0:10:16]} Bf8 {[%emt 0:03:36]} 12. Bg5 {[%emt 0:07:26]} e5 {[%emt 0:07:33]} 13. Nb3 {[%emt 0:05:27]} Qc7 {[%emt 0:09:55]} 14. N1d2 {[%emt 0:03:52]} g6 {[%emt 0:06:06]} 15. a5 {[%emt 0:04:39]} Bg7 {[%emt 0:00:40]} 16. Bb5 {[%emt 0:01:17]} a6 {[%emt 0:07:45]} 17. Ba4 {[%emt 0:01:22]} Re6 {[%emt 0:06:55]} 18. Qf3 {[%emt 0:03:25]} Rb8 {[%emt 0:04:55]} 19. Be3 {[%emt 0:06:24]} b5 {[%emt 0:08:38]} 20. axb6 {[%emt 0:00:13]} Nxb6 {[%emt 0:00:05]} 21. Nc5 {[%emt 0:00:35]} Rd6 {[%emt 0:00:34]} 22. b4 {[%emt 0:06:25]} Qd8 {[%emt 0:10:18]} 23. Nde4 {[%emt 0:04:30]} Nxe4 {[%emt 0:00:15]} 24. Nxe4 {[%emt 0:00:36]} Bb7 {[%emt 0:01:04]} 25. Bb3 {[%emt 0:02:17]} Rd7 {[%emt 0:02:06]} 26. Bc5 {[%emt 0:06:49]} Bd5 {[%emt 0:05:15]} 27. Bxd5 {[%emt 0:01:25]} Nxd5 {[%emt 0:01:15]} 28. Rxa6 {[%emt 0:01:50]} f5 {[%emt 0:01:08]} 29. Nd6 {[%emt 0:01:17]} Nc7 {[%emt 0:01:50]} 30. Rd1 {[%emt 0:01:24]} e4 {[%emt 0:01:24]} 31. Qe2 {[%emt 0:00:23]} Nxa6 {[%emt 0:01:51]} 32. Qxa6 {[%emt 0:01:01]} Qc7 {[%emt 0:01:10]} 33. g3 {[%emt 0:01:05]} h6 {[%emt 0:00:21]} 34. h4 {[%emt 0:00:19]} h5 {[%emt 0:00:45]} 35. Qc4+ {[%emt 0:01:23]} Kh7 {[%emt 0:00:04]} 36. Qe6 {[%emt 0:00:45]} Rbd8 {[%emt 0:00:29]} 37. c4 {[%emt 0:00:58]} Bf8 {[%emt 0:00:09]} 38. Rd5 {[%emt 0:00:35]} Bxd6 {[%emt 0:00:30]} 39. Rxf5 {[%emt 0:00:22]} gxf5 {[%emt 0:00:58]} 40. Qxf5+ {[%emt 0:00:01]} Kg8 {[%emt 0:00:07]} 41. Bd4 {[%emt 0:01:04]} Rf8 {[%emt 0:01:42]} 42. Qg6+ {[%emt 0:00:09]} Rg7 {[%emt 0:00:10]} 43. Bxg7 {[%emt 0:00:17]} Qxg7 {[%emt 0:00:04]} 44. Qxd6 {[%emt 0:00:04]} Qf6 {[%emt 0:01:09]} 45. Qc5 {[%emt 0:00:04]} Rd8 {[%emt 0:00:26]} 46. Qxh5 {[%emt 0:00:12]} Rd2 {[%emt 0:01:11]} 47. Qg4+ {[%emt 0:00:21]} Kf8 {[%emt 0:00:23]} 48. Qc8+ {[%emt 0:00:15]} Kg7 {[%emt 0:00:05]} 49. Qc7+ {[%emt 0:00:40]} Kh6 {[%emt 0:00:09]} 50. Qc5 {[%emt 0:00:05]} Rd1+ {[%emt 0:00:39]} 51. Kh2 {[%emt 0:00:21]} Rd4 {[%emt 0:00:06]} 52. Kg1 {[%emt 0:00:28]} e3 {[%emt 0:01:09]} 53. f4 {[%emt 0:01:59]} e2 {[%emt 0:00:46]} 54. Kf2 {[%emt 0:01:33]} Re4 {[%emt 0:00:10]} 55. Qg5+ {[%emt 0:00:19]} Qxg5 {[%emt 0:00:04]} 56. hxg5+ {[%emt 0:00:03]} Kg6 {[%emt 0:00:05]} 57. Ke1 {[%emt 0:00:03]} Kf5 58. g6 Kxg6 59. g4 1/2-1/2

[Event "13th Arad Open 2020"]
[Site "Arad"]
[Date "2020.09.28"]
[Round "4.9"]
[White "Breitkopf, Francisc"]
[Black "Lehaci, Miruna-Daria"]
[Result "0-1"]
[ECO "C00"]
[WhiteElo "1984"]
[BlackElo "2223"]
[Annotator "ChessBase"]
[PlyCount "116"]
[EventDate "2020.09.25"]
[EventType "swiss"]
[EventCountry "ROU"]
[SourceTitle "playchess.com"]
[Source "ChessBase"]
[SourceQuality "1"]
[TimeControl "5400+30"]

1. e4 {[%emt 0:00:00]} e6 {[%emt 0:00:00]} 2. d4 {[%emt 0:00:58]} d5 {[%emt 0:00:00]} 3. Bd3 {[%emt 0:03:04]} dxe4 {[%emt 0:00:41]} 4. Bxe4 {[%emt 0:00:26]} Nf6 {[%emt 0:00:06]} 5. Bd3 {[%emt 0:00:45]} c5 {[%emt 0:01:53]} 6. Nf3 {[%emt 0:04:21]} cxd4 {[%emt 0:02:00]} 7. Nxd4 {[%emt 0:02:54]} Be7 {[%emt 0:03:23]} 8. O-O {[%emt 0:03:35]} O-O {[%emt 0:00:44]} 9. a4 {[%emt 0:08:21]} Nbd7 {[%emt 0:02:31]} 10. c3 {[%emt 0:06:07]} Re8 {[%emt 0:07:56]} 11. Re1 {[%emt 0:10:16]} Bf8 {[%emt 0:03:36]} 12. Bg5 {[%emt 0:07:26]} e5 {[%emt 0:07:33]} 13. Nb3 {[%emt 0:05:27]} Qc7 {[%emt 0:09:55]} 14. N1d2 {[%emt 0:03:52]} g6 {[%emt 0:06:06]} 15. a5 {[%emt 0:04:39]} Bg7 {[%emt 0:00:40]} 16. Bb5 {[%emt 0:01:17]} a6 {[%emt 0:07:45]} 17. Ba4 {[%emt 0:01:22]} Re6 {[%emt 0:06:55]} 18. Qf3 {[%emt 0:03:25]} Rb8 {[%emt 0:04:55]} 19. Be3 {[%emt 0:06:24]} b5 {[%emt 0:08:38]} 20. axb6 {[%emt 0:00:13]} Nxb6 {[%emt 0:00:05]} 21. Nc5 {[%emt 0:00:35]} Rd6 {[%emt 0:00:34]} 22. b4 {[%emt 0:06:25]} Qd8 {[%emt 0:10:18]} 23. Nde4 {[%emt 0:04:30]} Nxe4 {[%emt 0:00:15]} 24. Nxe4 {[%emt 0:00:36]} Bb7 {[%emt 0:01:04]} 25. Bb3 {[%emt 0:02:17]} Rd7 {[%emt 0:02:06]} 26. Bc5 {[%emt 0:06:49]} Bd5 {[%emt 0:05:15]} 27. Bxd5 {[%emt 0:01:25]} Nxd5 {[%emt 0:01:15]} 28. Rxa6 {[%emt 0:01:50]} f5 {[%emt 0:01:08]} 29. Nd6 {[%emt 0:01:17]} Nc7 {[%emt 0:01:50]} 30. Rd1 {[%emt 0:01:24]} e4 {[%emt 0:01:24]} 31. Qe2 {[%emt 0:00:23]} Nxa6 {[%emt 0:01:51]} 32. Qxa6 {[%emt 0:01:01]} Qc7 {[%emt 0:01:10]} 33. g3 {[%emt 0:01:05]} h6 {[%emt 0:00:21]} 34. h4 {[%emt 0:00:19]} h5 {[%emt 0:00:45]} 35. Qc4+ {[%emt 0:01:23]} Kh7 {[%emt 0:00:04]} 36. Qe6 {[%emt 0:00:45]} Rbd8 {[%emt 0:00:29]} 37. c4 {[%emt 0:00:58]} Bf8 {[%emt 0:00:09]} 38. Rd5 {[%emt 0:00:35]} Bxd6 {[%emt 0:00:30]} 39. Rxf5 {[%emt 0:00:22]} gxf5 {[%emt 0:00:58]} 40. Qxf5+ {[%emt 0:00:01]} Kg8 {[%emt 0:00:07]} 41. Bd4 {[%emt 0:01:04]} Rf8 {[%emt 0:01:42]} 42. Qg6+ {[%emt 0:00:09]} Rg7 {[%emt 0:00:10]} 43. Bxg7 {[%emt 0:00:17]} Qxg7 {[%emt 0:00:04]} 44. Qxd6 {[%emt 0:00:04]} Qf6 {[%emt 0:01:09]} 45. Qc5 {[%emt 0:00:04]} Rd8 {[%emt 0:00:26]} 46. Qxh5 {[%emt 0:00:12]} Rd2 {[%emt 0:01:11]} 47. Qg4+ {[%emt 0:00:21]} Kf8 {[%emt 0:00:23]} 48. Qc8+ {[%emt 0:00:15]} Kg7 {[%emt 0:00:05]} 49. Qc7+ {[%emt 0:00:40]} Kh6 {[%emt 0:00:09]} 50. Qc5 {[%emt 0:00:05]} Rd1+ {[%emt 0:00:39]} 51. Kh2 {[%emt 0:00:21]} Rd4 {[%emt 0:00:06]} 52. Kg1 {[%emt 0:00:28]} e3 {[%emt 0:01:09]} 53. f4 {[%emt 0:01:59]} e2 {[%emt 0:00:46]} 54. Kf2 {[%emt 0:01:33]} Re4 {[%emt 0:00:10]} 55. Qg5+ {[%emt 0:00:19]} Qxg5 {[%emt 0:00:04]} 56. hxg5+ {[%emt 0:00:03]} Kg6 {[%emt 0:00:05]} 57. Ke1 {[%emt 0:00:03]} Kf5 58. c5 Kg4 0-1

[Event "13th Arad Open 2020"]
[Site "Arad"]
[Date "2020.09.28"]
[Round "4.10"]
[White "Isfan, Ioan-Marius"]
[Black "Popa-Matei, Viorel-Ovidiu"]
[Result "1-0"]
[ECO "A22"]
[WhiteElo "2187"]
[BlackElo "1915"]
[Annotator "ChessBase"]
[PlyCount "50"]
[EventDate "2020.09.25"]
[EventType "swiss"]
[EventCountry "ROU"]
[SourceTitle "playchess.com"]
[Source "ChessBase"]
[SourceQuality "1"]
[TimeControl "5400+30"]

1. c4 {[%emt 0:01:04]} e5 {[%emt 0:02:40]} 2. Nc3 {[%emt 0:00:05]} Nf6 {[%emt 0:00:17]} 3. g3 {[%emt 0:00:04]} Bc5 {[%emt 0:00:44]} 4. Bg2 {[%emt 0:00:07]} c6 {[%emt 0:00:21]} 5. e3 {[%emt 0:27:25]} O-O {[%emt 0:08:03]} 6. Nge2 {[%emt 0:01:42]} d5 {[%emt 0:07:11]} 7. cxd5 {[%emt 0:00:18]} cxd5 {[%emt 0:03:13]} 8. d4 {[%emt 0:00:07]} exd4 {[%emt 0:12:57]} 9. exd4 {[%emt 0:01:32]} Bb6 {[%emt 0:00:10]} 10. O-O {[%emt 0:00:38]} Nc6 {[%emt 0:00:29]} 11. Bg5 {[%emt 0:13:56]} Be6 {[%emt 0:03:25]} 12. Nf4 {[%emt 0:00:31]} Bxd4 {[%emt 0:03:20]} 13. Ncxd5 {[%emt 0:03:32]} h6 {[%emt 0:08:50]} 14. Nxe6 {[%emt 0:04:27]} fxe6 {[%emt 0:00:29]} 15. Nxf6+ {[%emt 0:00:13]} Bxf6 {[%emt 0:00:21]} 16. Be3 {[%emt 0:00:05]} Nd4 {[%emt 0:15:11]} 17. Qg4 {[%emt 0:01:27]} Nf5 {[%emt 0:15:10]} 18. Rad1 {[%emt 0:16:37]} Qe7 {[%emt 0:02:48]} 19. Rfe1 {[%emt 0:10:46]} Bxb2 {[%emt 0:05:27]} 20. Rb1 {[%emt 0:02:06]} Qf6 {[%emt 0:01:25]} 21. Bc5 {[%emt 0:02:00]} Rf7 {[%emt 0:02:01]} 22. Qc4 {[%emt 0:01:30]} Re8 {[%emt 0:01:57]} 23. Bd5 {[%emt 0:00:52]} b6 {[%emt 0:00:59]} 24. Bxe6 {[%emt 0:03:13]} Rxe6 {[%emt 0:02:30]} 25. Rxe6 {[%emt 0:00:05]} Be5 1-0

[Event "13th Arad Open 2020"]
[Site "Arad"]
[Date "2020.09.28"]
[Round "5.1"]
[White "Manolache, Marius"]
[Black "Istratescu, Andrei"]
[Result "1/2-1/2"]
[ECO "D14"]
[WhiteElo "2541"]
[BlackElo "2551"]
[Annotator "ChessBase"]
[PlyCount "24"]
[EventDate "2020.09.25"]
[EventType "swiss"]
[EventCountry "ROU"]
[SourceTitle "playchess.com"]
[Source "ChessBase"]
[SourceQuality "1"]
[TimeControl "5400+30"]

1. d4 {[%emt 0:00:00]} d5 {[%emt 0:00:00]} 2. Nf3 {[%emt 0:00:00]} Nf6 {[%emt 0:00:00]} 3. c4 {[%emt 0:00:00]} c6 {[%emt 0:00:00]} 4. cxd5 {[%emt 0:00:04]} cxd5 {[%emt 0:00:00]} 5. Nc3 {[%emt 0:00:05]} Nc6 {[%emt 0:00:00]} 6. Bf4 {[%emt 0:00:06]} Bf5 {[%emt 0:00:10]} 7. e3 {[%emt 0:00:09]} e6 {[%emt 0:00:02]} 8. Bd3 {[%emt 0:00:07]} Bxd3 {[%emt 0:00:04]} 9. Qxd3 {[%emt 0:00:06]} Bd6 {[%emt 0:00:02]} 10. Bxd6 {[%emt 0:00:08]} Qxd6 {[%emt 0:00:02]} 11. O-O {[%emt 0:00:09]} O-O {[%emt 0:00:02]} 12. Rfc1 {[%emt 0:00:08]} Rfc8 {[%emt 0:00:04]} 1/2-1/2